[Event "Niedersachsen-ch 2020"]
[Site "Verden-Aller"]
[Date "2020.01.04"]
[Round "5.3"]
[White "Hartogh, Christian"]
[Black "Renner, Kai"]
[Result "1/2-1/2"]
[ECO "B42"]
[WhiteElo "2075"]
[BlackElo "2180"]
[Annotator "ChessBase"]
[PlyCount "57"]
[EventDate "2020.01.02"]
[EventType "swiss"]
[EventCountry "GER"]
[SourceTitle "playchess.com"]
[Source "ChessBase"]
[SourceQuality "1"]
[TimeControl "40/5400+30:1800+30"]

1. e4 {[%emt 0:00:00]} c5 {[%emt 0:00:00]} 2. Nf3 {[%emt 0:00:00]} e6 {[%emt 0:00:00]} 3. d4 {[%emt 0:00:00]} cxd4 {[%emt 0:00:03]} 4. Nxd4 {[%emt 0:00:03]} a6 {[%emt 0:00:26]} 5. Bd3 {[%emt 0:00:44]} g6 {[%emt 0:01:56]} 6. Qe2 {[%emt 0:05:47]} Bg7 {[%emt 0:01:15]} 7. Be3 {[%emt 0:04:08]} Nc6 {[%emt 0:04:57]} 8. Nxc6 {[%emt 0:09:28]} bxc6 {[%emt 0:01:09]} 9. c3 {[%emt 0:04:54]} d5 {[%emt 0:06:07]} 10. Bc5 {[%emt 0:03:09]} Qc7 {[%emt 0:19:23]} 11. O-O {[%emt 0:03:32]} Ne7 {[%emt 0:12:52]} 12. f4 {[%emt 0:07:26]} dxe4 {[%emt 0:07:57]} 13. Bxe4 {[%emt 0:00:45]} O-O {[%emt 0:05:55]} 14. Na3 {[%emt 0:01:47]} a5 {[%emt 0:10:26]} 15. Bd3 {[%emt 0:05:36]} Re8 {[%emt 0:02:01]} 16. Rad1 {[%emt 0:11:23]} Nd5 {[%emt 0:01:41]} 17. g3 {[%emt 0:08:30]} e5 {[%emt 0:06:57]} 18. f5 {[%emt 0:09:30]} e4 {[%emt 0:00:48]} 19. fxg6 {[%emt 0:00:06]} hxg6 {[%emt 0:00:15]} 20. Bc4 {[%emt 0:01:59]} Bh3 {[%emt 0:03:13]} 21. Rfe1 {[%emt 0:03:40]} Rad8 {[%emt 0:00:39]} 22. Nc2 {[%emt 0:01:32]} Bxc3 {[%emt 0:03:36]} 23. bxc3 {[%emt 0:03:06]} Nxc3 {[%emt 0:00:05]} 24. Qe3 {[%emt 0:00:04]} Nxd1 {[%emt 0:00:58]} 25. Qh6 {[%emt 0:00:10]} Qe5 {[%emt 0:08:48]} 26. Qxg6+ {[%emt 0:01:16]} Kh8 {[%emt 0:00:41]} 27. Qh6+ {[%emt 0:10:31]} Kg8 {[%emt 0:00:02]} 28. Qg6+ {[%emt 0:00:05]} Kh8 {[%emt 0:00:03]} 29. Qh6+ {Rd4} 1/2-1/2

[Event "Niedersachsen-ch 2020"]
[Site "Verden-Aller"]
[Date "2020.01.04"]
[Round "5.4"]
[White "Ermel, Dirk"]
[Black "Hampel, Felix"]
[Result "1/2-1/2"]
[ECO "B20"]
[WhiteElo "2125"]
[BlackElo "2290"]
[Annotator "ChessBase"]
[PlyCount "29"]
[EventDate "2020.01.02"]
[EventType "swiss"]
[EventCountry "GER"]
[SourceTitle "playchess.com"]
[Source "ChessBase"]
[SourceQuality "1"]
[TimeControl "40/5400+30:1800+30"]

1. e4 {[%emt 0:00:00]} c5 {[%emt 0:00:00]} 2. c4 {[%emt 0:00:00]} Nc6 {[%emt 0:00:04]} 3. Ne2 {[%emt 0:00:00]} e6 {[%emt 0:00:22]} 4. d4 {[%emt 0:00:43]} cxd4 {[%emt 0:00:09]} 5. Nxd4 {[%emt 0:00:10]} Nf6 {[%emt 0:00:06]} 6. Nc3 {[%emt 0:00:15]} Bb4 {[%emt 0:00:10]} 7. Nxc6 {[%emt 0:00:18]} bxc6 {[%emt 0:00:06]} 8. Bd3 {[%emt 0:00:26]} e5 {[%emt 0:00:27]} 9. O-O {[%emt 0:00:41]} O-O {[%emt 0:00:07]} 10. Bg5 {[%emt 0:02:04]} h6 {[%emt 0:00:29]} 11. Be3 {[%emt 0:07:53]} Bxc3 {[%emt 0:04:52]} 12. bxc3 {[%emt 0:00:32]} d6 {[%emt 0:00:08]} 13. h3 {[%emt 0:05:25]} Be6 {[%emt 0:06:07]} 14. f4 {[%emt 0:03:33]} Qe7 {[%emt 0:23:02]} 15. Qf3 {[%emt 0:11:25]} 1/2-1/2

[Event "Niedersachsen-ch 2020"]
[Site "Verden-Aller"]
[Date "2020.01.04"]
[Round "5.5"]
[White "Ewert, Hannes"]
[Black "Mueer, Sebastian"]
[Result "0-1"]
[ECO "A05"]
[WhiteElo "2256"]
[BlackElo "2223"]
[Annotator "NA"]
[PlyCount "120"]
[EventDate "2020.01.02"]
[EventType "swiss"]
[EventCountry "GER"]
[SourceTitle "playchess.com"]
[Source "ChessBase"]
[SourceQuality "1"]
[TimeControl "40/5400+30:1800+30"]

1. Nf3 {[%emt 0:00:00]} Nf6 {[%emt 0:05:59]} 2. g3 {[%emt 0:00:00]} g6 {[%emt 0:00:01]} 3. Bg2 {[%emt 0:00:00]} Bg7 {[%emt 0:00:02]} 4. O-O {[%emt 0:00:00]} O-O {[%emt 0:00:44]} 5. b3 {[%emt 0:01:24]} d6 {[%emt 0:00:27]} 6. d4 {[%emt 0:00:11]} e5 {[%emt 0:00:09]} 7. dxe5 {[%emt 0:00:04]} dxe5 {[%emt 0:00:08]} 8. Bb2 {[%emt 0:05:25]} e4 {[%emt 0:02:11]} 9. Qxd8 {[%emt 0:44:37]} Rxd8 {[%emt 0:00:49]} 10. Nfd2 $11 {[%emt 0:00:30]} Bf5 {[%emt 0:36:18]} 11. Nc4 {[%emt 0:00:52]} Nc6 {[%emt 0:02:10]} 12. Nba3 {[%emt 0:13:54]} a6 {[%emt 0:14:03]} 13. Ne3 {[%emt 0:11:25]} Nd5 {[%emt 0:01:58]} 14. Bxg7 {[%emt 0:00:06]} Nxe3 {[%emt 0:01:03]} 15. fxe3 {[%emt 0:00:21]} Kxg7 {[%emt 0:00:06]} 16. Rf4 {[%emt 0:00:25]} Rd2 {[%emt 0:06:18]} 17. g4 {[%emt 0:04:43]} Be6 {[%emt 0:00:17]} 18. Bxe4 {[%emt 0:02:01]} Rxe2 {[%emt 0:01:46]} 19. Nc4 {[%emt 0:05:03]} Bxc4 {[%emt 0:09:32]} 20. Bxc6 {[%emt 0:01:30]} bxc6 {[%emt 0:00:34]} 21. bxc4 {[%emt 0:02:09]} Rd8 {[%emt 0:01:51]} 22. Raf1 {[%emt 0:02:24]} Rd7 {[%emt 0:01:03]} 23. R1f2 {[%emt 0:00:56]} Rxe3 {[%emt 0:01:01]} 24. Rf6 {[%emt 0:01:26]} Re6 {[%emt 0:03:43]} 25. R6f3 {[%emt 0:00:48]} Re4 {[%emt 0:00:33]} 26. h3 {[%emt 0:00:01]} a5 {[%emt 0:04:26]} 27. Ra3 {[%emt 0:00:47]} Re5 {[%emt 0:00:01]} 28. Kg2 {[%emt 0:00:37]} f6 {[%emt 0:01:08]} 29. Raf3 {[%emt 0:00:31]} Rd6 {[%emt 0:00:33]} 30. Rb3 {[%emt 0:00:31]} Rc5 {[%emt 0:01:00]} 31. Rd3 {[%emt 0:00:58]} Rxc4 {[%emt 0:01:04]} 32. Re3 {[%emt 0:00:01]} Rd7 {[%emt 0:00:39]} 33. Re6 {[%emt 0:00:17]} Rf7 {[%emt 0:00:01]} 34. Re8 {[%emt 0:00:44]} h6 {[%emt 0:01:26]} 35. Ra8 {[%emt 0:00:18]} Rc5 {[%emt 0:00:45]} 36. Re2 {[%emt 0:00:27]} h5 {[%emt 0:01:59]} 37. Ra6 {[%emt 0:02:23]} hxg4 {[%emt 0:00:21]} 38. hxg4 {[%emt 0:00:01]} Kh6 39. Kg3 Kg5 {[%emt 0:01:54]} 40. c4 {[%emt 0:00:02]} Rd7 {[%emt 0:00:53]} 41. Re6 {[%emt 0:31:57]} Rd6 {[%emt 0:06:51]} 42. Re4 {[%emt 0:00:00]} f5 {[%emt 0:00:31]} 43. gxf5 {[%emt 0:00:00]} gxf5 {[%emt 0:00:01]} 44. Re2 {[%emt 0:00:00]} Rd3+ {[%emt 0:04:06]} 45. Kf2 {[%emt 0:00:00]} Rd4 {[%emt 0:04:03]} 46. Rc2 {[%emt 0:00:00]} Kf4 {[%emt 0:05:38]} 47. Ra8 {[%emt 0:00:00]} Rdxc4 {[%emt 0:04:01]} 48. Rxc4+ {[%emt 0:00:00]} Rxc4 {[%emt 0:00:03]} 49. Rxa5 {[%emt 0:00:00]} Rc2+ {[%emt 0:00:05]} 50. Kf1 {[%emt 0:00:00]} c5 {[%emt 0:00:26]} 51. Ke1 {[%emt 0:00:00]} Ke3 {[%emt 0:00:33]} 52. Kd1 {[%emt 0:00:00]} Rd2+ {[%emt 0:03:26]} 53. Ke1 {[%emt 0:00:00]} Rh2 {[%emt 0:01:37]} 54. Ra3+ {[%emt 0:00:00]} Kd4 {[%emt 0:00:13]} 55. Rf3 {[%emt 0:00:00]} f4 {[%emt 0:01:22]} 56. a4 {[%emt 0:00:00]} Ra2 {[%emt 0:00:37]} 57. Kd1 {[%emt 0:00:00]} Ke4 {[%emt 0:00:16]} 58. Rc3 {[%emt 0:00:00]} c4 {[%emt 0:01:06]} 59. a5 {[%emt 0:00:00]} Rxa5 {[%emt 0:00:43]} 60. Rxc4+ {[%emt 0:00:00]} Kd3 {[%emt 0:00:02]} 0-1

[Event "Niedersachsen-ch 2020"]
[Site "Verden-Aller"]
[Date "2020.01.04"]
[Round "5.6"]
[White "Knuedel, Torben"]
[Black "Hoerstmann, Rudi"]
[Result "1/2-1/2"]
[ECO "B06"]
[WhiteElo "2185"]
[BlackElo "2241"]
[Annotator "NA"]
[PlyCount "84"]
[EventDate "2020.01.02"]
[EventType "swiss"]
[EventCountry "GER"]
[SourceTitle "playchess.com"]
[Source "ChessBase"]
[SourceQuality "1"]
[TimeControl "40/5400+30:1800+30"]

1. e4 {[%emt 0:00:00]} g6 {[%emt 0:00:00]} 2. d4 {[%emt 0:00:00]} Bg7 {[%emt 0:00:00]} 3. Nc3 {[%emt 0:00:00]} d6 {[%emt 0:00:00]} 4. Nge2 {[%emt 0:00:00]} Nd7 {[%emt 0:02:11]} 5. h3 {[%emt 0:04:00]} a6 {[%emt 0:01:02]} 6. g3 {[%emt 0:01:49]} c5 {[%emt 0:01:48]} 7. Be3 {[%emt 0:01:08]} b6 {[%emt 0:00:12]} 8. Bg2 {[%emt 0:00:19]} Rb8 {[%emt 0:00:37]} 9. Qd2 {[%emt 0:06:01]} Bb7 {[%emt 0:12:41]} 10. O-O {[%emt 0:06:06]} Ngf6 {[%emt 0:08:42]} 11. Rad1 {[%emt 0:20:18]} cxd4 {[%emt 0:02:39]} 12. Nxd4 {[%emt 0:09:20]} O-O $11 {[%emt 0:06:59]} 13. Rfe1 {[%emt 0:14:07]} Re8 {[%emt 0:17:40]} 14. f4 {[%emt 0:02:33]} Nc5 {[%emt 0:11:08]} 15. Bf2 {[%emt 0:01:49]} e5 {[%emt 0:18:11]} 16. Nb3 {[%emt 0:03:00]} exf4 {[%emt 0:00:08]} 17. Qxf4 {[%emt 0:08:25]} Nh5 {[%emt 0:00:08]} 18. Qxd6 {[%emt 0:05:15]} Qxd6 {[%emt 0:07:44]} 19. Rxd6 {[%emt 0:00:03]} Bxc3 {[%emt 0:00:44]} 20. bxc3 {[%emt 0:00:04]} Nxe4 {[%emt 0:00:39]} 21. Bxe4 {[%emt 0:09:44]} Bxe4 {[%emt 0:00:09]} 22. Rxb6 {[%emt 0:01:23]} Rxb6 {[%emt 0:02:16]} 23. Bxb6 {[%emt 0:00:07]} Nxg3 {[%emt 0:00:04]} 24. Nc5 {[%emt 0:01:09]} f5 {[%emt 0:00:06]} 25. Kf2 {[%emt 0:01:12]} Nh5 {[%emt 0:02:26]} 26. Nxe4 {[%emt 0:01:20]} fxe4 {[%emt 0:00:06]} 27. Bd4 {[%emt 0:00:56]} Nf4 {[%emt 0:00:55]} 28. h4 {[%emt 0:00:31]} Nd5 {[%emt 0:00:30]} 29. Ke2 {[%emt 0:02:21]} Ne7 {[%emt 0:01:23]} 30. Rb1 {[%emt 0:00:33]} Nf5 {[%emt 0:00:39]} 31. Rb7 {[%emt 0:00:47]} Re6 {[%emt 0:01:06]} 32. Rb8+ {[%emt 0:00:28]} Kf7 {[%emt 0:00:07]} 33. Rb7+ {[%emt 0:00:16]} Re7 {[%emt 0:01:06]} 34. Rb6 {[%emt 0:00:14]} Re6 {[%emt 0:01:50]} 35. Rb7+ {[%emt 0:00:04]} Re7 {[%emt 0:00:03]} 36. Rb6 {[%emt 0:00:04]} e3 {[%emt 0:00:54]} 37. Rxa6 {[%emt 0:00:54]} Ng3+ {[%emt 0:00:32]} 38. Ke1 {[%emt 0:00:18]} Nf5 {[%emt 0:00:45]} 39. Ke2 {[%emt 0:00:48]} Re4 {[%emt 0:00:38]} 40. Ra7+ {[%emt 0:00:54]} Kg8 {[%emt 0:00:33]} 41. Ra8+ {[%emt 0:05:42]} Kf7 {[%emt 0:00:12]} 42. Ra7+ {[%emt 0:00:17]} Kg8 1/2-1/2

[Event "Niedersachsen-ch 2020"]
[Site "Verden-Aller"]
[Date "2020.01.04"]
[Round "5.7"]
[White "Haerig, Wilfried"]
[Black "Pubantz, Jan"]
[Result "0-1"]
[ECO "B12"]
[WhiteElo "2161"]
[BlackElo "2233"]
[Annotator "NA"]
[PlyCount "90"]
[EventDate "2020.01.02"]
[EventType "swiss"]
[EventCountry "GER"]
[SourceTitle "playchess.com"]
[Source "ChessBase"]
[SourceQuality "1"]
[TimeControl "40/5400+30:1800+30"]

1. e4 {[%emt 0:00:00]} c6 {[%emt 0:00:00]} 2. d4 {[%emt 0:00:00]} d5 {[%emt 0:00:00]} 3. e5 {[%emt 0:00:00]} Bf5 {[%emt 0:00:00]} 4. Be3 {[%emt 0:00:16]} e6 {[%emt 0:00:17]} 5. Nf3 {[%emt 0:00:54]} Ne7 {[%emt 0:10:45]} 6. Nbd2 {[%emt 0:00:58]} Bg6 {[%emt 0:00:50]} 7. Nh4 {[%emt 0:00:49]} Nf5 {[%emt 0:00:55]} 8. Nxf5 {[%emt 0:00:42]} Bxf5 {[%emt 0:00:07]} 9. Be2 {[%emt 0:00:28]} c5 {[%emt 0:09:00]} 10. Bb5+ {[%emt 0:10:44]} Nc6 {[%emt 0:04:50]} 11. c4 {[%emt 0:01:20]} Rc8 {[%emt 0:22:54]} 12. dxc5 {[%emt 0:15:20]} d4 {[%emt 0:01:23]} 13. Bf4 {[%emt 0:00:09]} Bxc5 {[%emt 0:00:27]} 14. a3 {[%emt 0:04:46]} d3 $17 {[%emt 0:03:53]} 15. O-O {[%emt 0:10:12]} Qd4 {[%emt 0:09:47]} 16. Nb3 {[%emt 0:19:49]} Qxf4 {[%emt 0:00:10]} 17. Nxc5 {[%emt 0:00:05]} O-O {[%emt 0:07:06]} 18. Bxc6 bxc6 {[%emt 0:00:53]} 19. Nxd3 {[%emt 0:07:58]} Qxc4 {[%emt 0:00:21]} 20. Nb4 {[%emt 0:02:13]} c5 {[%emt 0:00:31]} 21. Na2 {[%emt 0:01:45]} Rfd8 {[%emt 0:05:57]} 22. Qc1 {[%emt 0:01:32]} Qb3 {[%emt 0:12:40]} 23. Nc3 {[%emt 0:03:14]} Rb8 {[%emt 0:01:38]} 24. Rd1 {[%emt 0:03:13]} Rd4 {[%emt 0:01:37]} 25. Rd2 {[%emt 0:09:31]} Rxd2 {[%emt 0:01:43]} 26. Qxd2 {[%emt 0:00:04]} Qxb2 {[%emt 0:00:33]} 27. Qxb2 {[%emt 0:02:28]} Rxb2 {[%emt 0:00:01]} 28. Rc1 {[%emt 0:00:51]} c4 {[%emt 0:01:49]} 29. Kf1 {[%emt 0:00:53]} Bd3+ {[%emt 0:00:36]} 30. Kg1 {[%emt 0:02:44]} Kf8 {[%emt 0:00:07]} 31. f4 {[%emt 0:01:17]} Ke7 {[%emt 0:00:17]} 32. Nd1 {[%emt 0:00:26]} Rb3 {[%emt 0:00:58]} 33. a4 {[%emt 0:00:56]} Rb4 {[%emt 0:02:19]} 34. a5 {[%emt 0:00:20]} Ra4 {[%emt 0:00:45]} 35. Nb2 {[%emt 0:00:02]} Rxa5 {[%emt 0:00:33]} 36. Nxd3 {[%emt 0:01:24]} cxd3 {[%emt 0:00:04]} 37. Kf2 {[%emt 0:00:34]} Rd5 {[%emt 0:00:23]} 38. Ke3 {[%emt 0:00:31]} d2 {[%emt 0:00:22]} 39. Rd1 {[%emt 0:00:03]} Kd7 {[%emt 0:00:19]} 40. g4 {[%emt 0:00:49]} Kc6 {[%emt 0:00:26]} 41. h4 {[%emt 0:04:30]} Kc5 {[%emt 0:00:57]} 42. h5 {[%emt 0:00:52]} Kc4 {[%emt 0:01:26]} 43. g5 {[%emt 0:05:13]} Kc3 {[%emt 0:02:05]} 44. Ke4 {[%emt 0:01:45]} Kc2 {[%emt 0:01:43]} 45. Rxd2+ {[%emt 0:00:56]} Rxd2 {[%emt 0:00:09] Kd4} 0-1

[Event "Niedersachsen-ch 2020"]
[Site "Verden-Aller"]
[Date "2020.01.04"]
[Round "5.8"]
[White "Stotyn, Fabian"]
[Black "Sreyas Payyappat"]
[Result "1/2-1/2"]
[ECO "A46"]
[WhiteElo "2198"]
[BlackElo "2166"]
[Annotator "ChessBase"]
[PlyCount "115"]
[EventDate "2020.01.02"]
[EventType "swiss"]
[EventCountry "GER"]
[SourceTitle "playchess.com"]
[Source "ChessBase"]
[SourceQuality "1"]
[TimeControl "40/5400+30:1800+30"]

1. d4 {[%emt 0:00:00]} Nf6 {[%emt 0:00:04]} 2. Nf3 {[%emt 0:00:00]} d5 {[%emt 0:00:05]} 3. g3 {[%emt 0:00:00]} e6 {[%emt 0:00:07]} 4. Bg2 {[%emt 0:00:00]} Be7 {[%emt 0:00:06]} 5. O-O {[%emt 0:00:01]} O-O {[%emt 0:00:12]} 6. c4 {[%emt 0:00:03]} c6 {[%emt 0:00:04]} 7. b3 {[%emt 0:01:15]} b6 {[%emt 0:00:33]} 8. Qc2 {[%emt 0:01:56]} Nbd7 {[%emt 0:00:25]} 9. Nbd2 {[%emt 0:00:27]} Bb7 {[%emt 0:00:15]} 10. e4 {[%emt 0:02:16]} Rc8 {[%emt 0:00:09]} 11. Bb2 {[%emt 0:03:01]} c5 {[%emt 0:06:52]} 12. exd5 {[%emt 0:04:12]} exd5 {[%emt 0:00:14]} 13. dxc5 {[%emt 0:02:07]} Nxc5 {[%emt 0:00:36]} 14. Rad1 {[%emt 0:05:53]} b5 {[%emt 0:24:47]} 15. Qb1 {[%emt 0:01:36]} bxc4 {[%emt 0:01:03]} 16. Nxc4 {[%emt 0:01:22]} Ba6 {[%emt 0:08:34]} 17. Rfe1 {[%emt 0:06:02]} Bxc4 {[%emt 0:02:34]} 18. bxc4 {[%emt 0:00:55]} Na4 {[%emt 0:00:37]} 19. Bxf6 {[%emt 0:04:05]} Bxf6 {[%emt 0:00:09]} 20. Rxd5 {[%emt 0:00:48]} Qc7 {[%emt 0:00:36]} 21. Ng5 {[%emt 0:08:03]} g6 {[%emt 0:03:11]} 22. Ne4 {[%emt 0:00:11]} Bg7 {[%emt 0:07:48]} 23. c5 {[%emt 0:04:38]} Qa5 {[%emt 0:12:24]} 24. Rc1 {[%emt 0:05:42]} Rc6 {[%emt 0:22:27]} 25. Rd6 {[%emt 0:06:26]} Rxd6 {[%emt 0:01:39]} 26. cxd6 {[%emt 0:00:36]} Nc3 {[%emt 0:00:17]} 27. Nxc3 {[%emt 0:00:50]} Bxc3 {[%emt 0:00:03]} 28. Qb3 {[%emt 0:01:06]} Bd4 {[%emt 0:00:42]} 29. d7 {[%emt 0:02:35]} Bxf2+ {[%emt 0:00:28]} 30. Kh1 {[%emt 0:00:53]} Bb6 {[%emt 0:00:41]} 31. Bd5 {[%emt 0:01:53]} Qa6 {[%emt 0:00:47]} 32. Qf3 {[%emt 0:03:05]} Bd8 {[%emt 0:04:35]} 33. Rc6 {[%emt 0:06:42]} Qa5 {[%emt 0:01:29]} 34. Rc1 {[%emt 0:05:20]} Qa6 {[%emt 0:00:07]} 35. Re1 {[%emt 0:03:00]} Qd6 {[%emt 0:01:40]} 36. Bc6 {[%emt 0:01:19]} Be7 {[%emt 0:00:43]} 37. Qe4 {[%emt 0:03:30]} Rd8 {[%emt 0:00:11]} 38. Ba4 {[%emt 0:02:38]} Bf6 {[%emt 0:00:57]} 39. Qc6 {[%emt 0:03:27]} Qxc6+ {[%emt 0:00:43]} 40. Bxc6 {[%emt 0:00:05]} h5 {[%emt 0:00:31]} 41. Re8+ {[%emt 0:31:18]} Kg7 {[%emt 0:30:25]} 42. Kg2 {[%emt 0:00:08]} h4 {[%emt 0:00:00]} 43. g4 {[%emt 0:00:00]} Bg5 {[%emt 0:00:00]} 44. Kf3 {[%emt 0:00:00]} f5 {[%emt 0:00:00]} 45. h3 {[%emt 0:00:00]} Kf7 {[%emt 0:00:00]} 46. Bd5+ {[%emt 0:00:00]} Kg7 {[%emt 0:00:00]} 47. Bc6 {[%emt 0:00:00]} Kf7 {[%emt 0:00:00]} 48. gxf5 {[%emt 0:00:00]} gxf5 {[%emt 0:00:00]} 49. Ke2 {[%emt 0:00:00]} Be7 {[%emt 0:00:00]} 50. Ke3 {[%emt 0:00:00]} Kf6 {[%emt 0:00:00]} 51. Kd4 {[%emt 0:00:00]} Ke6 {[%emt 0:00:00]} 52. Ba4 {[%emt 0:00:00]} Kd6 {[%emt 0:00:00]} 53. Kc4 {[%emt 0:00:00]} Ke6 {[%emt 0:00:00]} 54. Kd4 {[%emt 0:00:00]} Kd6 {[%emt 0:00:00]} 55. Ke3 {[%emt 0:00:00]} Ke6 {[%emt 0:00:00]} 56. Kf4 {[%emt 0:00:00]} Kf6 {[%emt 0:00:00]} 57. Bb5 {[%emt 0:00:00]} Ke6 {[%emt 0:00:00]} 58. Rxd8 {[%emt 0:03:18] Ke5+ Ke4+} 1/2-1/2

[Event "Niedersachsen-ch 2020"]
[Site "Verden-Aller"]
[Date "2020.01.04"]
[Round "5.9"]
[White "Webner, Dennis"]
[Black "Balazs, Balint"]
[Result "0-1"]
[ECO "A45"]
[WhiteElo "2113"]
[BlackElo "2158"]
[Annotator "ChessBase"]
[PlyCount "119"]
[EventDate "2020.01.02"]
[EventType "swiss"]
[EventCountry "GER"]
[SourceTitle "playchess.com"]
[Source "ChessBase"]
[SourceQuality "1"]
[TimeControl "40/5400+30:1800+30"]

1. d4 {[%emt 0:00:00]} Nf6 {[%emt 0:00:00]} 2. Bf4 {[%emt 0:00:00]} d5 {[%emt 0:01:49]} 3. e3 {[%emt 0:00:00]} c5 {[%emt 0:00:58]} 4. Nc3 {[%emt 0:00:02]} e6 {[%emt 0:05:31]} 5. Nb5 {[%emt 0:00:44]} Na6 {[%emt 0:00:08]} 6. c3 {[%emt 0:00:17]} Be7 {[%emt 0:01:29]} 7. h3 {[%emt 0:03:55]} O-O {[%emt 0:03:17]} 8. Nf3 {[%emt 0:00:09]} Bd7 {[%emt 0:03:08]} 9. a4 {[%emt 0:00:14]} Bc6 {[%emt 0:01:34]} 10. Be2 {[%emt 0:03:05]} Ne4 {[%emt 0:02:19]} 11. O-O {[%emt 0:00:42]} c4 {[%emt 0:03:47]} 12. Nd2 {[%emt 0:08:24]} Nxd2 {[%emt 0:19:07]} 13. Qxd2 {[%emt 0:00:06]} Bxb5 {[%emt 0:01:08]} 14. axb5 {[%emt 0:00:06]} Nc7 {[%emt 0:00:04]} 15. b3 {[%emt 0:20:47]} cxb3 {[%emt 0:03:22]} 16. Rfb1 {[%emt 0:01:28]} Bd6 {[%emt 0:02:14]} 17. Bxd6 {[%emt 0:04:32]} Qxd6 {[%emt 0:00:05]} 18. Rxb3 {[%emt 0:00:08]} a5 {[%emt 0:09:48]} 19. b6 {[%emt 0:10:53]} Ne8 {[%emt 0:00:17]} 20. Qb2 {[%emt 0:00:49]} Nf6 {[%emt 0:07:41]} 21. Rba3 {[%emt 0:05:08]} Ne4 {[%emt 0:02:23]} 22. Bd3 {[%emt 0:04:10]} Rac8 {[%emt 0:04:14]} 23. Bxe4 {[%emt 0:03:31]} dxe4 {[%emt 0:00:04]} 24. Rxa5 {[%emt 0:00:10]} Rc6 {[%emt 0:00:08]} 25. Rb5 {[%emt 0:02:08]} Rfc8 {[%emt 0:00:54]} 26. Qb4 {[%emt 0:04:49]} Kf8 {[%emt 0:08:55]} 27. Qxd6+ {[%emt 0:08:04]} Rxd6 {[%emt 0:00:07]} 28. Ra7 {[%emt 0:00:22]} Rb8 {[%emt 0:00:06]} 29. c4 {[%emt 0:00:30]} Ke7 {[%emt 0:01:18]} 30. Kf1 {[%emt 0:01:46]} Rc6 {[%emt 0:01:16]} 31. c5 {[%emt 0:02:30]} Kd7 {[%emt 0:00:14]} 32. Ke2 {[%emt 0:00:18]} Rcc8 {[%emt 0:00:11]} 33. Kd2 {[%emt 0:00:22]} Kc6 {[%emt 0:00:04]} 34. Rba5 {[%emt 0:00:25]} Rd8 {[%emt 0:03:02]} 35. Kc3 {[%emt 0:00:27]} f5 {[%emt 0:01:07]} 36. Kc4 {[%emt 0:00:51]} g5 {[%emt 0:00:12]} 37. Ra1 {[%emt 0:00:36]} Rf8 {[%emt 0:01:40]} 38. Rd1 {[%emt 0:00:58]} Rbd8 {[%emt 0:00:55]} 39. Ra2 {[%emt 0:00:38]} h5 {[%emt 0:02:08]} 40. Rad2 {[%emt 0:05:57]} Rd5 {[%emt 0:00:55]} 41. f3 {[%emt 0:32:25]} Rf7 {[%emt 0:24:18]} 42. Rf1 {[%emt 0:00:00]} Rfd7 {[%emt 0:02:30]} 43. Ra2 {[%emt 0:00:00]} exf3 {[%emt 0:01:56]} 44. Ra8 {[%emt 0:00:00]} Rd8 {[%emt 0:00:11]} 45. Rxd8 {[%emt 0:00:00]} Rxd8 {[%emt 0:00:08]} 46. gxf3 {[%emt 0:00:00]} Ra8 {[%emt 0:04:19]} 47. Kb3 {[%emt 0:00:00]} Kd5 {[%emt 0:01:00]} 48. Rg1 {[%emt 0:00:00]} Rg8 {[%emt 0:00:04]} 49. Kc3 {[%emt 0:00:00]} g4 {[%emt 0:05:44]} 50. hxg4 {[%emt 0:00:00]} fxg4 {[%emt 0:00:28]} 51. fxg4 {[%emt 0:00:00]} Ke4 {[%emt 0:00:17]} 52. g5 {[%emt 0:00:00]} Kxe3 {[%emt 0:00:03]} 53. Re1+ {[%emt 0:00:21]} Kf4 {[%emt 0:00:36]} 54. Rxe6 {[%emt 0:00:05]} h4 {[%emt 0:02:37]} 55. Re7 {[%emt 0:04:08]} Rb8 {[%emt 0:00:19]} 56. g6 {[%emt 0:00:48]} h3 {[%emt 0:00:09]} 57. Rh7 {[%emt 0:00:21]} Kg3 {[%emt 0:00:31]} 58. d5 {[%emt 0:01:28]} h2 {[%emt 0:00:17]} 59. g7 {[%emt 0:01:15]} Kg2 {[%emt 0:02:45]} 60. Kd4 {[%emt 0:03:21]} 0-1

[Event "Niedersachsen-ch 2020"]
[Site "Verden-Aller"]
[Date "2020.01.04"]
[Round "5.10"]
[White "Issing, Peter"]
[Black "Hoellmann, Ludger"]
[Result "0-1"]
[ECO "D37"]
[WhiteElo "2151"]
[BlackElo "2059"]
[Annotator "ChessBase"]
[PlyCount "52"]
[EventDate "2020.01.02"]
[EventType "swiss"]
[EventCountry "GER"]
[SourceTitle "playchess.com"]
[Source "ChessBase"]
[SourceQuality "1"]
[TimeControl "40/5400+30:1800+30"]

1. d4 {[%emt 0:00:00]} d5 {[%emt 0:01:47]} 2. c4 {[%emt 0:00:04]} e6 {[%emt 0:00:07]} 3. Nf3 {[%emt 0:00:31]} Nf6 {[%emt 0:00:10]} 4. Nc3 {[%emt 0:00:35]} Be7 {[%emt 0:00:19]} 5. Bf4 {[%emt 0:00:52]} O-O {[%emt 0:00:53]} 6. e3 {[%emt 0:01:03]} b6 {[%emt 0:00:18]} 7. cxd5 {[%emt 0:08:57]} Nxd5 {[%emt 0:00:13]} 8. Nxd5 {[%emt 0:01:27]} Qxd5 {[%emt 0:00:37]} 9. Bd3 {[%emt 0:01:37]} Qa5+ {[%emt 0:15:21]} 10. Nd2 {[%emt 0:08:53]} Ba6 {[%emt 0:00:15]} 11. Be4 {[%emt 0:20:04]} Nd7 {[%emt 0:03:10]} 12. Bxa8 {[%emt 0:06:26]} Rxa8 {[%emt 0:00:02]} 13. a3 {[%emt 0:14:48]} c5 {[%emt 0:06:29]} 14. b4 {[%emt 0:08:24]} cxb4 {[%emt 0:00:40]} 15. axb4 {[%emt 0:00:02]} Qb5 {[%emt 0:00:06]} 16. f3 {[%emt 0:01:42]} e5 {[%emt 0:13:40]} 17. Bxe5 {[%emt 0:03:06]} Nxe5 {[%emt 0:00:18]} 18. dxe5 {[%emt 0:00:05]} Bxb4 {[%emt 0:01:31]} 19. Kf2 {[%emt 0:04:52]} Rd8 {[%emt 0:01:34]} 20. Ra2 {[%emt 0:00:27]} Qxe5 {[%emt 0:10:35]} 21. Nc4 {[%emt 0:01:13]} Qc7 {[%emt 0:00:25]} 22. Rxa6 {[%emt 0:04:37]} Rxd1 {[%emt 0:02:14]} 23. Rxd1 {[%emt 0:00:01]} g6 {[%emt 0:03:26]} 24. Rd4 {[%emt 0:00:48]} b5 {[%emt 0:10:46]} 25. Nd6 {[%emt 0:02:03]} Qc1 {[%emt 0:01:51]} 26. Kg3 {[%emt 0:03:47]} Qxe3 {[%emt 0:02:53]} 0-1